bitfinex/quotes_ETHUSD_20260207
["timestamp","ask_amount","ask_price","bid_price","bid_amount"]
[1770475533206,0.001,2032.8,2031.9,1.27595823]
[1770475533382,0.001,2032.8,2031.9,2.50632223]
[1770475533587,0.001,2032.7,2031.8,1.23039458]
[1770475533796,0.001,2032.7,2031.7,4.92288254]
[1770475533797,0.1024,2032.6,2031.7,0.001]
[1770475534109,0.001,2032.6,2031.8,1.27595823]
[1770475534312,0.001,2032.6,2032.0,1.27595823]
[1770475534514,0.001,2032.6,2032.0,2.01874355]
[1770475535116,0.001,2032.6,2032.0,2.01974355]
[1770475535604,0.001,2032.6,2032.0,3.25001946]
[1770475536285,0.001,2032.5,2032.0,2.50723414]
[1770475536486,0.001,2032.7,2032.0,2.50723414]
[1770475536872,0.001,2032.6,2032.0,0.001]
[1770475537278,0.001,2032.5,2032.0,0.001]
[1770475537479,0.001,2032.7,2032.0,0.001]
[1770475537679,0.001,2032.6,2032.0,1.27695823]
[1770475538208,0.001,2032.5,2032.0,1.27695823]
[1770475538397,0.001,2032.8,2032.0,1.27695823]
[1770475538709,0.001,2032.7,2032.0,0.001]
[1770475538921,0.001,2032.8,2032.0,0.001]
[1770475539118,0.7147971,2032.8,2032.0,0.001]
[1770475539417,0.001,2032.7,2032.0,1.27695823]
[1770475539628,0.001,2032.7,2032.0,1.2312767]
[1770475539923,0.001,2032.6,2032.0,0.001]
[1770475540080,0.001,2032.5,2032.0,0.001]
[1770475540280,0.001,2032.8,2032.0,0.001]
[1770475540481,0.6161858,2032.8,2032.0,0.001]
[1770475541342,0.001,2032.7,2032.0,0.001]
[1770475541484,1.22989127,2032.7,2031.7,0.001]
[1770475541683,1.22989127,2032.7,2031.7,1.27695823]
[1770475541895,0.67646422,2032.6,2031.7,1.27695823]
[1770475542624,0.67646422,2032.6,2031.7,0.001]
[1770475543815,1.2300123,2032.5,2031.7,0.001]
[1770475544492,9.53514842,2032.4,2031.7,0.001]
[1770475545215,1.2300123,2032.5,2031.7,0.001]
[1770475545516,0.68806702,2032.4,2031.7,0.001]
[1770475545828,10.76534229,2032.2,2031.5,0.001]
[1770475546110,10.76534229,2032.2,2031.3,0.001]
[1770475546616,9.53514842,2031.9,2031.3,0.001]
[1770475546914,9.53514842,2031.9,2030.9,0.001]
[1770475546915,0.95892929,2031.8,2030.9,0.001]
[1770475547122,0.05414452,2031.7,2030.9,0.001]
[1770475547926,1.23055719,2031.6,2030.9,0.001]
[1770475548331,9.53514842,2031.3,2030.6,0.001]
[1770475548610,0.95351484,2031.2,2030.6,0.001]
[1770475548919,0.05414452,2031.4,2030.8,0.001]
[1770475549216,0.05414452,2031.4,2030.6,0.001]
[1770475549992,0.05414452,2031.7,2030.7,1.27595823]
[1770475550337,1.23055719,2031.6,2030.7,1.27595823]
[1770475551922,1.23055719,2031.6,2030.8,1.27595823]
[1770475552226,0.62069305,2031.5,2030.8,1.27595823]
[1770475553995,1.23067834,2031.4,2030.8,1.27595823]
[1770475555834,1.23046926,2031.8,2030.9,1.27595823]
[1770475556385,4.92174426,2032.0,2031.0,1.27595823]
[1770475558528,4.97588878,2032.0,2031.0,1.27595823]
[1770475558822,0.63086037,2031.9,2031.0,1.27595823]
[1770475559036,1.23004171,2032.5,2031.1,1.27595823]
[1770475560204,1.28418623,2032.5,2031.1,1.27595823]
[1770475560410,9.53514842,2032.4,2031.1,1.27595823]
[1770475560613,5.02251038,2032.5,2031.3,1.27595823]
[1770475560813,4.92011038,2032.5,2031.5,1.27595823]
[1770475561043,1.2300123,2032.5,2031.5,1.27595823]
[1770475561221,0.002,2032.3,2031.5,1.27595823]
[1770475562732,0.002,2032.3,2031.7,1.27595823]
[1770475564003,0.002,2032.3,2031.4,2.75729864]
[1770475564226,0.002,2032.3,2031.5,1.27595823]
[1770475564734,0.002,2032.3,2031.5,2.50657532]
[1770475565228,0.002,2032.3,2031.5,1.27595823]
[1770475565727,0.002,2032.3,2031.5,2.50656933]
[1770475565923,0.002,2032.3,2031.6,1.27595823]
[1770475567315,0.05414452,2032.2,2031.1,1.27595823]
[1770475567506,0.05414452,2032.2,2031.1,2.01913347]
[1770475568216,0.05414452,2032.2,2031.1,1.23085413]
[1770475568422,0.05414452,2032.2,2031.0,0.001]
[1770475568423,0.002,2032.3,2031.5,1.27595823]
[1770475568927,1.23213334,2032.3,2031.5,1.27595823]
[1770475570331,1.28627786,2032.3,2031.2,1.27595823]
[1770475570931,1.28627786,2032.3,2031.3,1.27595823]
[1770475571232,1.57419597,2032.2,2031.3,1.27595823]
[1770475571938,0.05414452,2032.0,2031.0,1.27695823]
[1770475572118,9.53514842,2031.8,2031.0,1.27695823]
[1770475572312,9.53514842,2031.5,2031.0,0.001]
[1770475572521,1.00765936,2031.7,2031.0,0.001]
[1770475572917,9.58929294,2031.3,2030.8,0.001]
[1770475573651,1.23055719,2031.6,2030.8,0.001]
[1770475573851,0.1024,2031.5,2030.8,0.001]
[1770475574062,0.82868453,2031.5,2030.8,0.001]
[1770475574552,0.82868453,2031.5,2031.0,0.001]
[1770475574716,0.82868453,2031.5,2030.8,0.001]
[1770475574914,1.23067834,2031.4,2030.8,0.001]
[1770475575114,1.23067834,2031.4,2030.8,1.27695823]
[1770475575333,1.92887603,2031.4,2030.8,1.27695823]
[1770475576519,9.53514842,2031.3,2030.8,0.001]
[1770475576718,1.98302055,2031.4,2030.8,0.001]
[1770475576919,1.98302055,2031.4,2030.6,0.001]
[1770475577136,0.70080346,2031.3,2030.6,0.001]
[1770475577546,9.58929294,2030.8,2030.2,0.001]
[1770475577733,9.53514842,2031.1,2030.2,1.27695823]
[1770475577932,0.70080346,2031.3,2030.4,2.50724042]
[1770475578222,0.26296795,2031.2,2030.5,1.27595823]
[1770475579251,1.23086012,2031.1,2030.5,1.27595823]
[1770475580356,1.23086012,2031.1,2030.2,0.001]
[1770475580567,10.76600854,2031.1,2030.2,1.27695823]
[1770475580729,1.23086012,2031.1,2030.3,1.27595823]
[1770475581073,1.23098133,2030.9,2030.3,1.27595823]
[1770475581360,1.23098133,2030.9,2030.2,0.001]
[1770475583143,9.53514842,2030.7,2030.2,0.001]
[1770475583341,9.58929294,2030.7,2030.0,0.001]
[1770475583591,9.58929294,2030.4,2029.8,0.001]
[1770475583772,0.95892929,2030.3,2029.8,0.001]
[1770475584491,0.95892929,2030.3,2029.4,1.27595823]
[1770475584686,9.53514842,2029.8,2029.1,1.27695823]
[1770475584846,9.53514842,2030.0,2029.1,1.27695823]
[1770475585259,1.23158776,2029.9,2029.1,0.001]
[1770475585458,9.53514842,2029.7,2029.1,0.001]
[1770475585858,1.23158776,2029.9,2029.1,1.27695823]
[1770475586058,1.56930872,2029.8,2029.1,1.23307087]
[1770475586252,1.23144348,2030.2,2029.2,1.27595823]
[1770475586856,9.53514842,2030.0,2029.1,0.001]
[1770475587175,0.1024,2029.9,2029.1,1.27695823]
[1770475587353,1.23164843,2029.8,2029.1,1.27695823]
[1770475587559,0.61582422,2029.7,2029.1,1.27695823]
[1770475588061,1.23164843,2029.8,2029.3,1.27695823]
[1770475588267,1.23164843,2029.8,2028.7,1.27595823]
[1770475588268,0.33524978,2029.6,2028.7,1.27595823]
[1770475588573,0.05414452,2029.4,2028.7,1.27595823]
[1770475588953,0.1024,2029.6,2028.7,1.27595823]
[1770475589154,1.18931969,2029.6,2028.7,1.27595823]
[1770475589666,9.53514842,2029.4,2028.7,1.27595823]
[1770475589882,1.2318305,2029.5,2028.7,1.27595823]
[1770475591892,1.2318305,2029.5,2028.8,1.27595823]
[1770475592463,1.2318305,2029.5,2028.6,1.27595823]
[1770475592669,0.73484722,2029.4,2028.6,1.27595823]
[1770475593269,0.73484722,2029.4,2028.3,1.23251448]
[1770475593270,0.73484722,2029.4,2028.4,1.27595823]
[1770475593684,1.2319519,2029.3,2028.4,1.27595823]
[1770475593880,1.2319519,2029.3,2028.4,2.50845311]
[1770475594082,1.2318305,2029.5,2028.5,1.27595823]
[1770475594285,1.95643222,2029.5,2028.7,1.27595823]
[1770475596105,1.95643222,2029.5,2028.7,2.5082375]
[1770475596389,0.72460172,2029.5,2028.8,1.27595823]
[1770475596592,0.72460172,2029.5,2028.6,5.18033348]
[1770475596593,9.53514842,2029.4,2028.6,0.25084531]
[1770475596890,9.53514842,2029.4,2028.5,1.12544385]
[1770475597489,10.36964532,2029.5,2028.5,1.12544385]
[1770475597690,1.03696453,2029.4,2028.5,1.12544385]
[1770475598207,1.2319519,2029.3,2028.5,1.12544385]
[1770475599693,1.2319519,2029.3,2028.7,0.001]
[1770475600996,2.26889572,2029.4,2028.7,1.12644385]
[1770475601194,0.71963777,2029.3,2028.7,1.12644385]
[1770475602099,5.02932725,2029.7,2028.7,1.12644385]
[1770475602100,10.36964532,2030.5,2029.0,0.05414452]
[1770475602274,1.23134512,2030.3,2029.3,1.12544385]
[1770475603273,10.36964532,2030.2,2029.3,1.12544385]
[1770475604371,1.23146643,2030.1,2029.3,1.12544385]
[1770475604596,1.65269775,2030.0,2029.4,1.12544385]
[1770475607175,2.88427198,2030.0,2029.4,1.12544385]
[1770475607369,1.23157423,2030.0,2029.4,1.12544385]
[1770475609001,1.23157423,2030.0,2029.1,1.12544385]
[1770475609200,1.23134512,2030.3,2029.2,1.12544385]
[1770475611298,4.92610837,2030.4,2029.3,1.2319519]
[1770475611502,4.92610837,2030.4,2029.4,1.12544385]
[1770475611678,1.66294382,2030.3,2029.4,1.12544385]
[1770475611882,1.66294382,2030.3,2029.2,1.12544385]
[1770475612299,10.36964532,2030.2,2029.2,1.12544385]
[1770475612896,0.002,2029.8,2029.2,1.12544385]
[1770475613485,0.002,2030.0,2029.3,1.12544385]
[1770475614090,0.002,2030.0,2028.9,1.12544385]
[1770475614297,0.002,2030.0,2029.0,1.12544385]
[1770475616501,10.36964532,2029.9,2029.0,1.12544385]
[1770475616711,0.002,2030.0,2028.7,1.12644385]
[1770475616712,10.36964532,2029.6,2028.7,1.12644385]
[1770475617004,10.36964532,2029.9,2028.9,1.12544385]
[1770475617505,10.36964532,2029.6,2028.9,1.12544385]
[1770475617883,1.2318305,2029.5,2028.7,0.001]
[1770475620478,10.36964532,2029.3,2028.5,0.001]
[1770475621225,10.42378984,2029.3,2028.5,0.001]
[1770475622205,10.42378984,2029.3,2028.6,1.12544385]
[1770475622206,1.23201261,2029.2,2028.6,1.12544385]
[1770475622405,1.23199877,2029.3,2028.6,1.12544385]
[1770475622710,1.23199877,2029.3,2028.7,1.12544385]
[1770475624607,1.2317698,2029.6,2028.8,1.12544385]
[1770475624791,19.92682908,2030.6,2029.0,1.12544385]
[1770475624792,1.865147,2030.0,2029.0,1.12544385]
[1770475626786,1.865147,2030.0,2029.2,1.12544385]
[1770475627111,1.23355933,2030.0,2029.2,1.12544385]
[1770475627296,0.002,2030.0,2029.2,1.12544385]
[1770475627695,0.002,2030.2,2029.3,1.12444385]
[1770475627696,1.23343655,2030.2,2029.3,1.12444385]
[1770475629123,0.002,2030.2,2029.3,1.23190967]
[1770475629308,2.02427989,2030.2,2029.4,1.12444385]
[1770475631326,2.02427989,2030.2,2029.4,2.35629728]
[1770475631327,1.23146643,2030.1,2029.4,2.35629728]
[1770475631505,1.23146643,2030.1,2029.5,1.12444385]
[1770475631816,1.23341032,2030.2,2029.5,1.12444385]
[1770475632187,0.002,2030.2,2029.5,1.12444385]
[1770475633419,0.002,2030.2,2029.7,1.12444385]
[1770475633598,0.002,2030.2,2029.8,1.12444385]
[1770475634190,0.002,2030.2,2028.4,1.12444385]
[1770475634191,0.05414452,2029.6,2028.4,1.12444385]
[1770475634395,0.1024,2029.7,2028.6,1.12444385]
[1770475634700,1.14960453,2029.7,2028.6,1.12444385]
[1770475635435,1.2319519,2029.3,2028.2,1.12444385]
[1770475635591,10.36964532,2029.0,2028.2,1.12444385]
[1770475635790,10.36964532,2029.0,2027.9,1.12444385]
[1770475636026,10.36964532,2028.7,2027.8,0.001]
[1770475636190,1.03696453,2028.6,2027.8,0.001]
[1770475636393,1.03696453,2028.6,2027.8,1.12544385]
[1770475636606,10.36964532,2029.0,2027.8,1.12544385]
[1770475637516,1.23219478,2028.9,2027.8,1.12544385]
[1770475637819,1.23219478,2028.9,2027.9,1.12444385]
[1770475638722,1.23219478,2028.9,2028.5,0.001]
[1770475639106,1.23219478,2028.9,2027.9,1.12444385]
[1770475639301,1.65306192,2028.8,2027.9,1.12444385]
[1770475639517,1.23231626,2028.7,2027.9,1.12444385]
[1770475640503,1.23231626,2028.7,2028.0,1.12444385]
[1770475640911,1.23231626,2028.7,2027.5,6.00336442]
[1770475640912,10.36964532,2028.1,2027.5,7.12780827]
[1770475641216,1.03696453,2028.0,2027.2,1.12444385]
[1770475641608,1.2328024,2027.9,2027.2,1.12444385]
[1770475641917,10.36964532,2027.8,2026.7,1.12444385]
[1770475642222,1.2328024,2027.9,2027.1,1.12444385]
[1770475642430,3.48298555,2027.9,2027.1,1.12444385]
[1770475645521,3.48298555,2027.9,2026.4,1.12444385]
[1770475645522,10.36964532,2027.5,2026.4,1.12444385]
[1770475645703,1.23310644,2027.4,2026.4,1.12444385]
[1770475646499,1.23310644,2027.4,2026.0,2.3583999]
[1770475646702,1.23310644,2027.4,2026.1,1.12444385]
[1770475646703,10.36964532,2027.1,2026.1,1.12444385]
[1770475646934,1.03696453,2027.0,2026.1,1.12444385]
[1770475647131,1.03696453,2027.0,2025.7,1.12444385]
[1770475647515,5.93458652,2026.5,2023.0,1.13665714]
[1770475647718,10.36964532,2023.3,2022.4,2.81359149]
[1770475648050,0.25745714,2023.6,2022.4,2.81359149]
[1770475648051,0.25745714,2023.6,2023.5,2.88282759]
[1770475648267,1.71812011,2024.0,2022.7,0.90419874]
[1770475648406,5.8661427,2023.9,2022.7,0.90419874]
[1770475648738,5.8661427,2023.9,2022.5,0.28135915]
[1770475648739,1.12780649,2023.8,2022.5,0.28135915]
[1770475648943,0.90419874,2022.7,2022.1,1.2362919]
[1770475649107,10.36964532,2023.5,2022.0,1.23638773]
[1770475649435,9.81213046,2023.2,2021.9,1.23643389]
[1770475649737,9.81213046,2023.2,2021.8,0.90419874]
[1770475649738,1.23578843,2023.0,2021.8,0.90419874]
[1770475649901,3.49960768,2022.9,2021.8,0.90419874]
[1770475650103,3.49960768,2022.9,2021.8,2.14072049]
[1770475650308,3.49960768,2022.9,2021.9,0.73355639]
[1770475650619,3.49960768,2022.9,2021.8,1.23648228]
[1770475650934,3.49960768,2022.9,2021.9,0.90419874]
[1770475651126,3.49960768,2022.9,2022.0,0.001]
[1770475651312,3.49960768,2022.9,2021.8,1.23650201]
[1770475651519,3.49960768,2022.9,2021.6,2.14080657]
[1770475651726,1.58587931,2022.8,2021.6,1.23659843]
[1770475651938,0.34996077,2022.8,2021.6,1.23659843]
[1770475652233,1.58590621,2022.8,2021.6,1.2366332]
[1770475652635,1.64005073,2022.8,2021.3,1.23678194]
[1770475652844,0.98482587,2022.7,2021.2,4.9475099]
[1770475653044,0.98482587,2022.7,2021.2,2.07659246]
[1770475653045,0.26248766,2022.6,2021.2,2.07659246]
[1770475653341,0.26248766,2022.6,2020.8,0.90419874]
[1770475653542,0.26248766,2022.6,2021.6,1.23661361]
[1770475653743,0.34996077,2022.8,2021.4,0.95834326]
[1770475653945,0.34996077,2022.8,2021.4,0.90419874]
[1770475654245,11.39800987,2022.8,2021.2,1.23688897]
[1770475654412,0.48085572,2022.7,2021.3,0.90419874]
[1770475654810,0.48085572,2022.7,2021.5,0.95834326]
[1770475655116,0.48085572,2022.7,2021.5,0.90419874]
[1770475655628,0.48085572,2022.7,2021.8,1.23652191]
[1770475655831,0.48085572,2022.7,2021.9,0.70868083]
[1770475657311,1.23523889,2023.9,2022.3,1.34720552]
[1770475657541,14.74011773,2024.5,2022.6,1.34720552]
[1770475657846,4.93997925,2024.5,2022.7,2.58317724]
[1770475658225,4.93997925,2024.5,2022.9,1.34720552]
[1770475658433,0.75082617,2024.4,2022.9,1.34720552]
[1770475659233,0.75082617,2024.4,2023.0,0.05414452]
[1770475659452,0.75082617,2024.4,2023.0,1.34720552]
[1770475659943,0.75082617,2024.4,2023.3,0.05414452]
[1770475659944,1.98577545,2024.4,2023.3,0.05414452]
[1770475660253,1.23494928,2024.4,2023.1,2.52878834]
[1770475660554,2.56835891,2024.4,2023.1,1.23572734]
[1770475661128,1.23494928,2024.4,2023.1,1.23572734]
[1770475661343,1.23490336,2024.5,2023.1,2.58293286]
[1770475661544,1.23490336,2024.5,2023.2,0.75258423]
[1770475661740,1.33340963,2024.4,2023.2,0.75258423]
[1770475661943,1.33340963,2024.0,2022.3,4.94479294]
[1770475662326,1.33340963,2023.7,2022.3,4.94479294]
[1770475662971,1.33340963,2023.7,2022.3,1.23621618]
[1770475663848,9.80013848,2023.3,2022.2,1.23626926]
[1770475664156,0.35050148,2023.7,2022.0,1.293061]
[1770475664157,6.27514703,2023.6,2022.0,1.293061]
[1770475664361,6.27514703,2023.6,2022.1,0.62381703]
[1770475664362,1.33340963,2023.4,2022.1,0.62381703]
[1770475664657,1.73107075,2023.5,2021.8,1.23651118]
[1770475664658,1.33340963,2023.2,2021.8,1.23651118]
[1770475665037,1.33340963,2023.2,2022.5,0.001]
[1770475665233,1.33340963,2023.2,2021.7,4.6905424]
[1770475665548,1.33340963,2023.2,2021.7,1.23652476]
[1770475665745,1.33340963,2022.8,2020.9,1.294061]
[1770475665946,0.05414452,2023.1,2021.3,2.52988878]
[1770475665947,0.1024,2023.0,2021.3,2.52988878]
[1770475666147,0.74074367,2023.0,2021.4,2.04080416]
[1770475666351,1.33340963,2022.9,2021.4,0.74774316]
[1770475667362,0.63834367,2023.0,2021.4,2.04080416]
[1770475667669,0.63834367,2023.0,2021.5,1.293061]
[1770475668036,1.23584952,2022.9,2021.6,1.23664424]
[1770475668238,1.87416427,2023.0,2022.4,0.003]
[1770475669437,4.94273963,2023.2,2022.4,0.003]
[1770475669773,1.23554413,2023.4,2022.4,0.003]
[1770475670571,2.96655843,2023.5,2022.4,0.003]
[1770475671150,1.23548768,2023.5,2022.4,0.003]
[1770475671352,14.75241839,2024.0,2022.4,0.003]
[1770475671666,1.77226463,2024.3,2022.6,1.34720552]
[1770475671667,1.23499481,2024.3,2022.6,1.34720552]
[1770475672049,1.23499481,2024.3,2022.7,1.23597172]
[1770475672237,1.59864379,2024.2,2022.8,0.74729196]
[1770475672575,1.59864379,2024.2,2022.9,1.34720552]
[1770475672750,1.23499481,2024.3,2022.9,1.34720552]
[1770475673255,1.23690598,2024.5,2023.2,1.34720552]
[1770475673459,1.23690598,2024.5,2023.2,1.293061]
[1770475674073,0.002,2024.5,2022.9,1.23584952]
[1770475674292,1.33540963,2024.5,2022.9,1.23584952]
[1770475674449,9.81146381,2024.3,2022.9,1.95816518]
[1770475674648,1.02664751,2024.2,2022.9,1.95816518]
[1770475674883,1.02664751,2024.1,2022.8,1.23587518]
[1770475675086,1.02664751,2024.0,2022.8,1.23587518]
[1770475675290,1.02664751,2023.9,2022.8,1.23587518]
[1770475675572,1.02664751,2023.8,2022.8,1.23587518]
[1770475675786,1.02664751,2023.7,2022.8,1.23587518]
[1770475675968,1.02664751,2023.6,2022.9,0.61797569]
[1770475676266,1.03375035,2023.5,2023.0,1.23578843]
[1770475676436,1.71812011,2023.8,2023.0,1.23578843]
[1770475676639,1.03374791,2023.7,2023.0,1.23578843]
[1770475676874,1.03374791,2023.6,2023.0,1.23578843]
[1770475677162,1.03374791,2023.5,2023.0,1.23578843]
[1770475677363,1.03767098,2023.4,2023.0,1.91549899]
[1770475677569,1.03767098,2023.3,2023.0,1.91549899]
[1770475677775,1.71812011,2023.7,2023.0,1.91549899]
[1770475677947,2.57718017,2023.9,2022.9,1.23584283]
[1770475677948,2.75573284,2023.6,2022.9,1.23584283]
[1770475678272,2.27313542,2023.5,2022.7,0.001]
[1770475678473,1.03761273,2023.4,2022.7,0.001]
[1770475678676,2.75573284,2023.3,2022.7,0.001]
[1770475678899,1.03761273,2023.2,2022.7,0.001]
[1770475679046,1.03761273,2023.1,2022.7,0.001]
[1770475679242,1.03761273,2023.0,2022.7,0.001]
[1770475679458,1.71812011,2023.3,2022.7,0.001]
[1770475679660,1.03769708,2023.2,2022.7,0.001]
[1770475679861,1.03769708,2023.1,2022.7,0.001]
[1770475680074,1.03769708,2023.0,2022.7,0.001]
[1770475680279,1.03769708,2022.9,2022.7,0.001]
[1770475680449,1.71812011,2023.3,2022.7,0.001]
[1770475680774,1.03765488,2023.2,2022.7,0.001]
[1770475680986,1.03765488,2023.1,2022.7,0.001]
[1770475681153,1.03765488,2023.0,2022.7,0.001]
[1770475681355,1.03765488,2022.9,2022.7,0.001]
[1770475681552,1.71812011,2023.3,2022.7,0.001]
[1770475681759,1.03748908,2023.2,2022.7,0.001]
[1770475682085,1.71812011,2023.5,2022.7,0.001]
[1770475682292,2.14765014,2023.5,2022.7,0.001]
[1770475682454,0.42953003,2023.5,2022.7,0.001]
[1770475682651,2.57718017,2023.8,2022.7,0.001]
[1770475682857,3.81243304,2023.9,2022.7,0.001]
[1770475683780,2.57718017,2023.9,2022.7,0.001]
[1770475684153,3.81246418,2023.9,2022.7,0.001]
[1770475684559,1.33340963,2023.8,2022.7,0.001]
[1770475684873,3.09176755,2023.7,2022.7,0.001]
[1770475685174,2.57718017,2023.8,2022.7,0.001]
[1770475685677,2.57718017,2024.0,2022.8,0.05414452]
[1770475685872,3.81239475,2024.0,2022.8,1.293061]
[1770475686173,2.57718017,2024.1,2022.8,1.293061]
[1770475686347,2.57718017,2024.1,2022.9,1.23584952]
[1770475686548,2.57718017,2024.1,2023.0,0.74723086]
[1770475686954,3.81229996,2024.1,2023.0,0.74723086]
[1770475687175,2.57718017,2024.1,2023.1,1.24237803]
[1770475687487,3.81219815,2024.3,2023.0,4.20223086]
[1770475687674,2.57718017,2024.2,2023.0,4.20223086]
[1770475687980,2.57718017,2024.3,2023.1,0.54922249]
[1770475688479,2.57718017,2024.3,2023.2,1.23566627]
[1770475688672,3.81223024,2024.3,2023.2,1.23566627]
[1770475690286,3.81220153,2024.3,2023.2,1.23566627]
[1770475690580,5.16640143,2024.3,2023.2,1.23566627]
[1770475690780,1.3541999,2024.1,2023.1,1.23570079]
[1770475691081,2.57718017,2023.9,2022.9,1.23581495]
[1770475691289,3.43624023,2024.1,2022.9,1.23584768]
[1770475691290,1.3541999,2023.7,2022.9,1.23584768]
[1770475691490,3.93138007,2023.7,2022.8,1.23586454]
[1770475691691,3.93138007,2023.7,2023.0,0.001]
[1770475692761,3.81260219,2023.6,2023.0,0.001]
[1770475692987,3.81258251,2023.7,2023.0,0.001]
[1770475693194,5.42829455,2023.7,2023.0,0.001]
[1770475693776,2.85107622,2023.7,2023.0,0.001]
[1770475694081,1.03873119,2023.6,2023.0,0.001]
[1770475694282,1.03873119,2023.5,2023.0,0.001]
[1770475694484,1.03873119,2023.4,2023.0,0.001]
[1770475694781,2.57718017,2023.9,2023.0,0.001]
[1770475695191,2.57718017,2023.8,2023.0,0.001]
[1770475695566,4.67337831,2024.1,2023.0,0.001]
[1770475695567,2.57718017,2023.9,2023.0,0.001]
[1770475695791,2.57718017,2023.8,2023.0,0.001]
[1770475695986,2.57718017,2023.7,2023.0,0.001]
[1770475696187,3.93138007,2023.6,2023.0,0.001]
[1770475696399,3.93138007,2023.3,2022.4,1.2391493]
[1770475696575,2.57718017,2023.2,2022.4,1.85785838]
[1770475696773,3.81285732,2023.2,2022.5,1.23608897]
[1770475697174,3.81285732,2023.2,2022.4,1.85781973]
[1770475697370,3.81285732,2023.2,2022.4,0.62170908]
[1770475697371,2.57718017,2023.1,2022.4,0.62170908]
[1770475697576,2.57718017,2022.9,2022.4,0.003]
[1770475698094,2.57718017,2022.8,2022.4,0.003]
[1770475698279,2.57718017,2022.7,2022.4,0.003]
[1770475699096,3.81313067,2022.8,2022.4,0.003]
[1770475699271,2.57718017,2022.7,2022.4,0.003]
[1770475701302,5.03241049,2022.8,2022.4,0.003]
[1770475701768,2.57718017,2022.7,2022.4,0.003]
[1770475702179,2.57718017,2022.7,2022.2,0.003]
[1770475702991,2.57718017,2022.6,2022.2,0.003]
[1770475703202,2.57718017,2022.7,2022.2,0.003]
[1770475703501,2.57718017,2022.8,2022.2,0.003]
[1770475703702,2.57718017,2022.9,2022.2,0.003]
[1770475704501,3.93138007,2022.9,2022.2,0.003]
[1770475704697,1.3541999,2022.9,2022.2,0.003]
[1770475704903,1.3541999,2022.9,2022.4,0.001]
[1770475705196,3.81297259,2023.0,2022.4,0.001]
[1770475706778,1.03925253,2022.9,2022.4,0.001]
[1770475706970,1.03925253,2022.8,2022.4,0.001]
[1770475707175,1.03925253,2022.7,2022.4,0.001]
[1770475707391,1.03925253,2022.6,2022.4,0.001]
[1770475707601,3.81297259,2023.0,2022.4,0.001]
[1770475707602,1.03925253,2022.5,2022.4,0.001]
[1770475709901,1.03925253,2022.5,2021.3,1.23678313]
[1770475709902,1.3541999,2022.4,2021.3,1.23678313]
[1770475710114,1.3541999,2022.4,2019.8,1.3377013]
[1770475710115,1.3541999,2021.3,2019.8,1.3377013]
[1770475710283,1.3541999,2021.3,2019.8,2.62620855]
[1770475710284,1.03925253,2021.2,2019.8,2.62620855]
[1770475710607,2.58770196,2021.8,2020.3,0.05414452]
[1770475710916,2.38969447,2021.7,2019.9,0.76313383]
[1770475711090,2.38969447,2021.6,2019.9,9.45488564]
[1770475711406,2.5913337,2020.8,2019.9,2.00080756]
[1770475711584,1.3541999,2020.6,2019.9,0.76313383]
[1770475711784,1.3541999,2020.4,2019.8,0.1]
[1770475711984,1.03549457,2020.3,2019.8,0.1]
[1770475712188,1.3541999,2020.4,2019.8,0.04]
[1770475712385,7.40324456,2020.6,2019.4,1.23795494]
[1770475712386,2.38505849,2020.3,2019.4,1.23795494]
[1770475712586,1.3541999,2020.3,2019.4,1.23795784]
[1770475712815,1.3541999,2020.3,2019.3,1.23801362]
[1770475713012,1.3541999,2020.3,2019.3,0.61903909]
[1770475713216,1.3541999,2020.7,2019.7,1.23777481]
[1770475713385,1.3541999,2020.7,2019.3,4.95218856]
[1770475713386,1.23731749,2020.5,2019.0,4.95292807]
[1770475713597,1.3541999,2020.4,2019.0,4.95292807]
[1770475714025,1.3541999,2020.4,2019.0,5.00707259]
[1770475714233,1.3541999,2020.4,2019.0,4.95292807]
[1770475714509,0.25915174,2020.3,2019.0,4.95292807]
[1770475714678,1.3541999,2020.4,2019.0,4.95292807]
[1770475715012,1.23731749,2020.5,2019.0,6.24143532]
[1770475715203,1.3541999,2020.4,2019.0,4.95292807]
[1770475715409,2.59161033,2020.4,2019.0,12.35617263]
[1770475715913,2.59161033,2020.4,2019.0,4.95292807]
[1770475716284,1.45465351,2020.3,2019.0,4.95292807]
[1770475717611,1.23731749,2020.5,2019.0,8.802399]
[1770475718017,2.691971,2020.5,2019.0,8.802399]
[1770475718217,2.21876951,2020.4,2019.1,0.8802399]
[1770475718420,2.21876951,2020.4,2019.4,0.001]
[1770475718787,1.45465351,2020.3,2019.4,0.001]
[1770475719485,2.6921141,2020.3,2019.4,0.001]
[1770475720308,2.0015009,2020.4,2019.4,0.001]
[1770475720702,1.23735775,2020.5,2019.4,0.001]
[1770475720904,2.69188746,2020.7,2019.4,0.001]
[1770475721221,2.69188746,2020.7,2019.0,4.95249325]
[1770475721222,2.69188746,2020.7,2015.3,0.05414452]
[1770475721223,1.45465351,2018.0,2015.3,0.05414452]
[1770475721437,2.05619204,2017.2,2016.5,1.16559042]
[1770475721731,1.70043067,2017.9,2017.5,1.83209086]
[1770475721919,1.70043067,2017.9,2016.6,4.59601947]
[1770475721920,0.05414452,2017.7,2016.6,1.25275433]
[1770475722117,0.05414452,2017.4,2016.7,4.59601947]
[1770475722308,1.70043067,2018.0,2016.8,4.59601947]
[1770475722514,1.01801272,2017.9,2016.9,4.59601947]
[1770475722722,1.01801272,2017.8,2016.6,8.04460956]
[1770475722927,4.39389448,2018.1,2016.6,8.04460956]
[1770475723125,1.01802601,2018.0,2016.7,8.05501947]
[1770475723320,1.01802601,2018.0,2016.2,0.05414452]
[1770475723321,1.70043067,2017.5,2016.2,0.05414452]
[1770475723630,1.23889788,2018.0,2016.5,0.05414452]
[1770475723805,1.23882891,2018.1,2016.7,7.5825286]
[1770475723994,1.01650882,2018.0,2016.6,3.46]
[1770475724199,2.01508134,2018.3,2016.7,3.51414452]
[1770475724410,1.01558019,2018.2,2016.9,0.05414452]
[1770475724623,2.01507522,2018.3,2016.9,3.461]
[1770475724624,1.01555869,2018.1,2016.9,3.461]
[1770475724817,2.01507522,2018.3,2017.0,0.3461]
[1770475725032,1.01559957,2018.2,2017.0,0.3461]
[1770475725332,0.7764,2018.3,2017.6,7.5825286]
[1770475725542,0.05414452,2017.9,2013.6,0.00392]
[1770475725842,1.45465351,2015.0,2013.0,0.05414452]
[1770475726004,0.05414452,2014.5,2013.2,1.3769464]
[1770475726202,0.92962177,2014.9,2013.5,7.5825286]
[1770475726203,1.40782673,2014.9,2013.5,7.5825286]